fUSD/lending_fUSD_20260519
["ID","MTS","AMOUNT","RATE_DAILY","PERIOD"]
[422598595,1779137440000,-150.0,0.0002332,2]
[422598593,1779137440000,-150.0,0.0002332,2]
[422598596,1779137440000,-307.3306153,0.00023347,21]
[422598600,1779137440000,-811.25,0.00023744,2]
[422598719,1779137441000,-150.0,0.00027397,2]
[422598717,1779137441000,-500.0,0.00027397,2]
[422598713,1779137441000,-500.0,0.00027397,2]
[422598710,1779137441000,-811.23502315,0.00027397,2]
[422598709,1779137441000,-305.15456273,0.00027397,7]
[422598701,1779137441000,-163.0,0.00027128,3]
[422598693,1779137441000,-492.0,0.000271,7]
[422598695,1779137441000,-150.0,0.00027123,20]
[422598697,1779137441000,-163.0,0.00027128,3]
[422598706,1779137441000,-500.0,0.00027396,2]
[422598703,1779137441000,-502.0,0.00027137,2]
[422598688,1779137441000,-670.32,0.00027,2]
[422598704,1779137441000,-2313.0,0.00027215,3]
[422598715,1779137441000,-500.0,0.00027397,2]
[422598734,1779137441000,-300.0,0.00027397,2]
[422598721,1779137441000,-500.0,0.00027397,2]
[422598723,1779137441000,-500.0,0.00027397,2]
[422598728,1779137441000,-1500.0,0.00027397,2]
[422598725,1779137441000,-428.94130666,0.00027397,2]
[422598730,1779137441000,-526.82,0.00027397,2]
[422598732,1779137441000,-379.42,0.00027397,2]
[422598737,1779137441000,-27108.21,0.00027397,10]
[422598736,1779137441000,-32529.85,0.00027397,10]
[422598739,1779137441000,-22590.18,0.00027397,10]
[422598740,1779137441000,-18825.15,0.00027397,10]
[422598751,1779137441000,-500.0,0.00027723,7]
[422598742,1779137441000,-305.15456273,0.00027397,7]
[422598743,1779137441000,-150.0,0.00027397,2]
[422598690,1779137441000,-2313.0,0.00027084,3]
[422598726,1779137441000,-150.0,0.00027397,2]
[422598698,1779137441000,-1586.0,0.00027128,3]
[422598655,1779137441000,-1270.0,0.0002632,2]
[422598666,1779137441000,-20332.99329974,0.0002652,2]
[422598644,1779137441000,-152.0,0.00025818,7]
[422598649,1779137441000,-196.6,0.00026074,2]
[422598641,1779137441000,-152.0,0.000258,7]
[422598643,1779137441000,-152.0,0.000258,7]
[422598646,1779137441000,-550.0,0.00026,2]
[422598648,1779137441000,-152.0,0.00026032,2]
[422598650,1779137441000,-10000.0,0.00026255,2]
[422598654,1779137441000,-625.0,0.0002632,2]
[422598663,1779137441000,-8466.0,0.00026438,2]
[422598657,1779137441000,-3632.0,0.0002632,2]
[422598652,1779137441000,-927.0,0.0002632,2]
[422598662,1779137441000,-500.0,0.00026438,2]
[422598653,1779137441000,-1354.0,0.0002632,2]
[422598658,1779137441000,-150.0,0.0002632,2]
[422598674,1779137441000,-1203.37,0.0002676,7]
[422598660,1779137441000,-457.7318441,0.00026397,2]
[422598651,1779137441000,-434.2,0.00026296,2]
[422598661,1779137441000,-500.0,0.00026438,2]
[422598656,1779137441000,-150.0,0.0002632,2]
[422598665,1779137441000,-152.0,0.00026453,7]
[422598676,1779137441000,-2313.0,0.00026764,3]
[422598678,1779137441000,-163.0,0.00026764,3]
[422598664,1779137441000,-2313.0,0.00026444,3]
[422598680,1779137441000,-163.0,0.00026808,3]
[422598682,1779137441000,-1586.0,0.00026851,3]
[422598684,1779137441000,-2313.0,0.00026851,3]
[422598672,1779137441000,-4684.34643903,0.00026663,2]
[422598686,1779137441000,-164.0,0.00027,7]
[422598670,1779137441000,-2313.0,0.00026531,3]
[422598668,1779137441000,-2313.0,0.00026531,3]
[422598659,1779137441000,-160.07,0.00026393,2]
[422598750,1779137441000,-2313.0,0.00027579,3]
[422598748,1779137441000,-163.0,0.00027535,3]
[422598745,1779137441000,-240.61,0.000274,7]
[422598789,1779137441000,-179.91,0.00028693,30]
[422598781,1779137441000,-179.91,0.00028661,7]
[422598782,1779137441000,-274.8,0.00028661,7]
[422598780,1779137441000,-1092.93,0.00028661,7]
[422598788,1779137441000,-1092.93,0.00028693,30]
[422598784,1779137441000,-1093.11,0.00028661,7]
[422598783,1779137441000,-287.42,0.00028661,7]
[422598786,1779137441000,-274.86,0.00028661,7]
[422598785,1779137441000,-179.8,0.00028661,7]
[422598787,1779137441000,-287.76,0.00028693,30]
[422598803,1779137441000,-287.76,0.00028756,7]
[422598805,1779137441000,-179.91,0.00028756,7]
[422598804,1779137441000,-1092.93,0.00028756,7]
[422598797,1779137441000,-179.91,0.00028725,2]
[422598792,1779137441000,-1093.11,0.00028693,30]
[422598793,1779137441000,-179.8,0.00028693,30]
[422598794,1779137441000,-274.86,0.00028693,30]
[422598802,1779137441000,-274.86,0.00028725,2]
[422598795,1779137441000,-287.76,0.00028725,2]
[422598806,1779137441000,-274.8,0.00028756,7]
[422598796,1779137441000,-1092.93,0.00028725,2]
[422598800,1779137441000,-1093.11,0.00028725,2]
[422598799,1779137441000,-287.42,0.00028725,2]
[422598798,1779137441000,-274.8,0.00028725,2]
[422598807,1779137441000,-287.42,0.00028756,7]
[422598808,1779137441000,-1093.11,0.00028756,7]
[422598809,1779137441000,-179.8,0.00028756,7]
[422598812,1779137441000,-150.0,0.00028767,2]
[422598811,1779137441000,-215.94512088,0.00028759,5]
[422598752,1779137441000,-500.0,0.000278,7]
[422598801,1779137441000,-179.8,0.00028725,2]
[422598791,1779137441000,-287.42,0.00028693,30]
[422598810,1779137441000,-274.86,0.00028756,7]
[422598790,1779137441000,-274.8,0.00028693,30]
[422598778,1779137441000,-274.86,0.0002863,2]
[422598749,1779137441000,-1586.0,0.00027579,3]
[422598744,1779137441000,-331.76,0.000274,7]
[422598746,1779137441000,-2313.0,0.00027448,3]
[422598757,1779137441000,-2313.0,0.00027899,3]
[422598754,1779137441000,-2313.0,0.00027811,3]
[422598758,1779137441000,-2313.0,0.00027956,3]
[422598763,1779137441000,-900.0,0.00028219,10]
[422598760,1779137441000,-187.87,0.00028,2]
[422598762,1779137441000,-420.37187793,0.0002817,2]
[422598753,1779137441000,-502.0,0.00027806,2]
[422598764,1779137441000,-908.56951832,0.00028219,10]
[422598761,1779137441000,-7027.68,0.00028097,7]
[422598759,1779137441000,-600.0,0.00028,2]
[422598756,1779137441000,-1832.11347403,0.00027875,2]
[422598747,1779137441000,-1586.0,0.00027535,3]
[422598765,1779137441000,-434.2,0.00028267,2]
[422598755,1779137441000,-2313.0,0.00027855,3]
[422598779,1779137441000,-287.76,0.00028661,7]
[422598772,1779137441000,-1092.93,0.0002863,2]
[422598774,1779137441000,-274.8,0.0002863,2]
[422598769,1779137441000,-502.0,0.00028475,3]
[422598777,1779137441000,-179.8,0.0002863,2]
[422598770,1779137441000,-562.41666739,0.00028478,3]
[422598771,1779137441000,-287.76,0.0002863,2]
[422598773,1779137441000,-179.91,0.0002863,2]
[422598775,1779137441000,-287.42,0.0002863,2]
[422598776,1779137441000,-1093.11,0.0002863,2]
[422598767,1779137441000,-450.0,0.00028344,2]
[422598766,1779137441000,-437.4,0.00028344,2]
[422598768,1779137441000,-1203.37,0.00028451,7]
[422598856,1779137442000,-179.91,0.00028947,7]
[422598854,1779137442000,-287.76,0.00028947,7]
[422598851,1779137442000,-1093.11,0.00028915,2]
[422598848,1779137442000,-179.91,0.00028915,2]
[422598853,1779137442000,-274.86,0.00028915,2]
[422598841,1779137442000,-274.8,0.00028883,30]
[422598855,1779137442000,-1092.93,0.00028947,7]
[422598850,1779137442000,-287.42,0.00028915,2]
[422598852,1779137442000,-179.8,0.00028915,2]
[422598849,1779137442000,-274.8,0.00028915,2]
[422598847,1779137442000,-1092.93,0.00028915,2]
[422598859,1779137442000,-1093.11,0.00028947,7]
[422598858,1779137442000,-287.42,0.00028947,7]
[422598861,1779137442000,-274.86,0.00028947,7]
[422598857,1779137442000,-274.8,0.00028947,7]
[422598862,1779137442000,-1586.0,0.00028954,3]
[422598872,1779137442000,-150.0,0.00028981,2]
[422598873,1779137442000,-150.0,0.00028981,2]
[422598874,1779137442000,-152.0,0.00028981,2]
[422598868,1779137442000,-1093.11,0.00028979,30]
[422598864,1779137442000,-1092.93,0.00028979,30]
[422598869,1779137442000,-179.8,0.00028979,30]
[422598865,1779137442000,-179.91,0.00028979,30]
[422598866,1779137442000,-274.8,0.00028979,30]
[422598867,1779137442000,-287.42,0.00028979,30]
[422598870,1779137442000,-274.86,0.00028979,30]
[422598863,1779137442000,-287.76,0.00028979,30]
[422598843,1779137442000,-1093.11,0.00028883,30]
[422598860,1779137442000,-179.8,0.00028947,7]
[422598842,1779137442000,-287.42,0.00028883,30]
[422598827,1779137442000,-1093.11,0.0002882,2]
[422598838,1779137442000,-287.76,0.00028883,30]
[422598871,1779137442000,-150.0,0.00028981,2]
[422598818,1779137442000,-287.42,0.00028788,30]
[422598819,1779137442000,-1093.11,0.00028788,30]
[422598814,1779137442000,-287.76,0.00028788,30]
[422598816,1779137442000,-179.91,0.00028788,30]
[422598815,1779137442000,-1092.93,0.00028788,30]
[422598813,1779137442000,-150.0,0.00028767,2]
[422598817,1779137442000,-274.8,0.00028788,30]
[422598821,1779137442000,-274.86,0.00028788,30]
[422598820,1779137442000,-179.8,0.00028788,30]
[422598831,1779137442000,-1092.93,0.00028852,7]
[422598823,1779137442000,-1092.93,0.0002882,2]
[422598822,1779137442000,-287.76,0.0002882,2]
[422598832,1779137442000,-179.91,0.00028852,7]
[422598833,1779137442000,-274.8,0.00028852,7]
[422598825,1779137442000,-274.8,0.0002882,2]
[422598828,1779137442000,-179.8,0.0002882,2]
[422598826,1779137442000,-287.42,0.0002882,2]
[422598824,1779137442000,-179.91,0.0002882,2]
[422598830,1779137442000,-287.76,0.00028852,7]
[422598829,1779137442000,-274.86,0.0002882,2]
[422598834,1779137442000,-287.42,0.00028852,7]
[422598835,1779137442000,-1093.11,0.00028852,7]
[422598837,1779137442000,-274.86,0.00028852,7]
[422598836,1779137442000,-179.8,0.00028852,7]
[422598844,1779137442000,-179.8,0.00028883,30]
[422598845,1779137442000,-274.86,0.00028883,30]
[422598846,1779137442000,-287.76,0.00028915,2]
[422598839,1779137442000,-1092.93,0.00028883,30]
[422598840,1779137442000,-179.91,0.00028883,30]
[422598876,1779137442000,-287.76,0.0002901,2]
[422598898,1779137442000,-1093.11,0.00029074,30]
[422598875,1779137442000,-208.5339928,0.00029,30]
[422598909,1779137442000,-1093.11,0.00029105,2]
[422598908,1779137442000,-287.42,0.00029105,2]
[422598910,1779137442000,-179.8,0.00029105,2]
[422598911,1779137442000,-274.86,0.00029105,2]
[422598916,1779137442000,-1092.93,0.00029137,7]
[422598915,1779137442000,-287.76,0.00029137,7]
[422598927,1779137442000,-274.8,0.00029169,30]
[422598926,1779137442000,-179.91,0.00029169,30]
[422598928,1779137442000,-287.42,0.00029169,30]
[422598918,1779137442000,-274.8,0.00029137,7]
[422598917,1779137442000,-179.91,0.00029137,7]
[422598919,1779137442000,-287.42,0.00029137,7]
[422598920,1779137442000,-1093.11,0.00029137,7]
[422598923,1779137442000,-502.0,0.00029144,4]
[422598924,1779137442000,-287.76,0.00029169,30]
[422598925,1779137442000,-1092.93,0.00029169,30]
[422598922,1779137442000,-274.86,0.00029137,7]
[422598921,1779137442000,-179.8,0.00029137,7]
[422598930,1779137442000,-179.8,0.00029169,30]
[422598929,1779137442000,-1093.11,0.00029169,30]
[422598931,1779137442000,-274.86,0.00029169,30]
[422598935,1779137442000,-240.61,0.000292,7]
[422598932,1779137442000,-168.15013474,0.00029175,7]
[422598934,1779137442000,-275.4018519,0.00029175,7]
[422598936,1779137442000,-287.76,0.00029201,2]
[422598937,1779137442000,-1092.93,0.00029201,2]
[422598939,1779137442000,-274.8,0.00029201,2]
[422598941,1779137442000,-1093.11,0.00029201,2]
[422598886,1779137442000,-179.91,0.00029042,7]
[422598905,1779137442000,-1092.93,0.00029105,2]
[422598913,1779137442000,-500.0,0.00029134,7]
[422598940,1779137442000,-287.42,0.00029201,2]
[422598907,1779137442000,-274.8,0.00029105,2]
[422598912,1779137442000,-200.0,0.0002913,7]
[422598877,1779137442000,-1092.93,0.0002901,2]
[422598880,1779137442000,-287.42,0.0002901,2]
[422598881,1779137442000,-1093.11,0.0002901,2]
[422598879,1779137442000,-274.8,0.0002901,2]
[422598884,1779137442000,-287.76,0.00029042,7]
[422598882,1779137442000,-179.8,0.0002901,2]
[422598885,1779137442000,-1092.93,0.00029042,7]
[422598883,1779137442000,-274.86,0.0002901,2]
[422598900,1779137442000,-274.86,0.00029074,30]
[422598896,1779137442000,-274.8,0.00029074,30]
[422598894,1779137442000,-1092.93,0.00029074,30]
[422598888,1779137442000,-287.42,0.00029042,7]
[422598887,1779137442000,-274.8,0.00029042,7]
[422598878,1779137442000,-179.91,0.0002901,2]
[422598895,1779137442000,-179.91,0.00029074,30]
[422598889,1779137442000,-1093.11,0.00029042,7]
[422598906,1779137442000,-179.91,0.00029105,2]
[422598902,1779137442000,-770.0,0.000291,2]
[422598904,1779137442000,-287.76,0.00029105,2]
[422598903,1779137442000,-928.0,0.000291,2]
[422598901,1779137442000,-517.0,0.000291,2]
[422598914,1779137442000,-1002.33,0.00029134,2]
[422598899,1779137442000,-179.8,0.00029074,30]
[422598897,1779137442000,-287.42,0.00029074,30]
[422598892,1779137442000,-150.0,0.00029074,30]
[422598890,1779137442000,-179.8,0.00029042,7]
[422598938,1779137442000,-179.91,0.00029201,2]
[422598893,1779137442000,-287.76,0.00029074,30]
[422598891,1779137442000,-274.86,0.00029042,7]
[422598981,1779137443000,-200.0,0.0003,2]
[422598985,1779137443000,-164.0,0.00030131,30]
[422598978,1779137443000,-650.0,0.0003,2]
[422598984,1779137443000,-152.0,0.00030131,30]
[422598982,1779137443000,-500.0,0.00030027,2]
[422598976,1779137443000,-17172.65368235,0.0003,7]
[422598983,1779137443000,-492.0,0.000301,7]
[422598977,1779137443000,-172.0,0.0003,14]
[422598987,1779137443000,-203.0,0.00030131,30]
[422598975,1779137443000,-500.67601375,0.0003,60]
[422598979,1779137443000,-200.0,0.0003,2]
[422598980,1779137443000,-200.0,0.0003,2]
[422598996,1779137443000,-200.0,0.00030137,2]
[422598994,1779137443000,-152.23356144,0.00030137,2]
[422598990,1779137443000,-159.0,0.00030131,30]
[422598989,1779137443000,-157.0,0.00030131,30]
[422598991,1779137443000,-289.0,0.00030131,30]
[422598986,1779137443000,-153.0,0.00030131,30]
[422598992,1779137443000,-261.27,0.00030136,8]
[422598995,1779137443000,-379.42,0.00030137,2]
[422598993,1779137443000,-261.27,0.00030136,8]
[422598998,1779137443000,-151.0,0.00030137,120]
[422599008,1779137443000,-1500.0,0.00030137,15]
[422599009,1779137443000,-1500.0,0.00030137,15]
[422598969,1779137443000,-500.0,0.00029732,30]
[422598999,1779137443000,-151.0,0.00030137,120]
[422598988,1779137443000,-372.0,0.00030131,30]
[422598974,1779137443000,-1275.0,0.00029997,5]
[422598958,1779137443000,-200.82710935,0.0002932,2]
[422598970,1779137443000,-502.0,0.00029814,4]
[422598997,1779137443000,-275.5,0.00030137,2]
[422598949,1779137443000,-287.49,0.00029232,7]
[422598943,1779137443000,-274.86,0.00029201,2]
[422598948,1779137443000,-274.96,0.00029232,7]
[422598942,1779137443000,-179.8,0.00029201,2]
[422598944,1779137443000,-156.22142969,0.00029203,2]
[422598946,1779137443000,-1093.08,0.00029232,7]
[422598947,1779137443000,-179.94,0.00029232,7]
[422598950,1779137443000,-1093.24,0.00029232,7]
[422598954,1779137443000,-927.0,0.0002932,2]
[422598952,1779137443000,-274.89,0.00029232,7]
[422598953,1779137443000,-2313.0,0.00029274,3]
[422598955,1779137443000,-1219.855,0.0002932,2]
[422598961,1779137443000,-4684.34643903,0.00029336,2]
[422598956,1779137443000,-625.0,0.0002932,2]
[422598951,1779137443000,-179.91,0.00029232,7]
[422598960,1779137443000,-200.0,0.0002933,20]
[422598962,1779137443000,-22434.67635293,0.00029369,2]
[422598957,1779137443000,-3632.0,0.0002932,2]
[422598964,1779137443000,-150.0,0.00029534,2]
[422598963,1779137443000,-203.75847026,0.0002953,7]
[422598966,1779137443000,-331.76,0.000296,7]
[422598965,1779137443000,-419.39319205,0.00029543,2]
[422598971,1779137443000,-2313.0,0.00029971,3]
[422598972,1779137443000,-2074.0,0.00029971,3]
[422598967,1779137443000,-1586.0,0.00029651,3]
[422598973,1779137443000,-1343.0,0.00029997,5]
[422598968,1779137443000,-163.0,0.0002967,3]
[422599000,1779137443000,-1500.0,0.00030137,15]
[422598945,1779137443000,-287.85,0.00029232,7]
[422599007,1779137443000,-1500.0,0.00030137,15]
[422599046,1779137443000,-192.67820274,0.00030534,7]
[422599035,1779137443000,-1000.0,0.00030292,2]
[422599048,1779137443000,-550.8037038,0.00030534,7]
[422599047,1779137443000,-336.30026948,0.00030534,7]
[422599037,1779137443000,-1000.0,0.00030292,2]
[422599038,1779137443000,-500.0,0.00030309,2]
[422599049,1779137443000,-207.37495472,0.00030534,7]
[422599039,1779137443000,-2313.0,0.0003031,3]
[422599045,1779137443000,-196.6,0.00030512,120]
[422599043,1779137443000,-5530.0,0.000304,5]
[422599044,1779137443000,-502.0,0.00030483,5]
[422599041,1779137443000,-240.61,0.000304,7]
[422599050,1779137443000,-162.5161166,0.00030534,7]
[422599054,1779137443000,-420.5,0.00030632,7]
[422599055,1779137443000,-1000.0,0.00030675,2]
[422599053,1779137443000,-1586.0,0.0003063,3]
[422599052,1779137443000,-312.44285938,0.00030563,2]
[422599051,1779137443000,-178.57856278,0.00030534,2]
[422599063,1779137443000,-203.0,0.00031131,30]
[422599058,1779137443000,-150.0,0.00031011,2]
[422599056,1779137443000,-2313.0,0.00030989,3]
[422599062,1779137443000,-153.0,0.00031131,30]
[422599057,1779137443000,-500.0,0.00031,61]
[422599061,1779137443000,-164.0,0.00031131,30]
[422599059,1779137443000,-200.0,0.00031096,2]
[422599060,1779137443000,-152.0,0.00031131,30]
[422599064,1779137443000,-372.0,0.00031131,30]
[422599036,1779137443000,-1000.0,0.00030292,2]
[422599031,1779137443000,-1000.0,0.0003029,2]
[422599065,1779137443000,-157.0,0.00031131,30]
[422599025,1779137443000,-2985.33,0.000302,2]
[422599030,1779137443000,-1000.0,0.0003029,2]
[422599001,1779137443000,-237.46,0.00030137,2]
[422599004,1779137443000,-1500.0,0.00030137,15]
[422599006,1779137443000,-1500.0,0.00030137,15]
[422599005,1779137443000,-1500.0,0.00030137,15]
[422599003,1779137443000,-1500.0,0.00030137,15]
[422599010,1779137443000,-1500.0,0.00030137,15]
[422599020,1779137443000,-158.0,0.00030145,30]
[422599015,1779137443000,-1203.37,0.00030137,7]
[422599014,1779137443000,-2432.69,0.00030137,2]
[422599012,1779137443000,-1734.927438,0.00030137,15]
[422599013,1779137443000,-2432.69,0.00030137,2]
[422599016,1779137443000,-237.46,0.00030138,2]
[422599021,1779137443000,-161.0,0.00030145,30]
[422599002,1779137443000,-237.46,0.00030137,2]
[422599019,1779137443000,-155.0,0.00030145,30]
[422599017,1779137443000,-237.46,0.00030139,2]
[422599027,1779137443000,-434.2,0.00030239,2]
[422599032,1779137443000,-1000.0,0.0003029,2]
[422599029,1779137443000,-1000.0,0.0003029,2]
[422599024,1779137443000,-402.01,0.000302,2]
[422599026,1779137443000,-150.0,0.00030205,2]
[422599022,1779137443000,-398.0,0.00030145,30]
[422599018,1779137443000,-237.46,0.0003014,2]
[422599034,1779137443000,-1000.0,0.00030292,2]
[422599028,1779137443000,-1000.0,0.0003029,2]
[422599023,1779137443000,-157.0,0.00030145,30]
[422599033,1779137443000,-1000.0,0.00030292,2]
[422599011,1779137443000,-1500.0,0.00030137,15]
[422599096,1779137444000,-200.0,0.000316,2]
[422599103,1779137444000,-5000.0,0.00031901,2]
[422599094,1779137444000,-1000.0,0.00031561,92]
[422599098,1779137444000,-173.0,0.00031644,14]
[422599100,1779137444000,-150.0,0.00031716,2]
[422599108,1779137444000,-164.99548644,0.00032,120]
[422599101,1779137444000,-502.0,0.00031821,7]
[422599107,1779137444000,-240.61,0.00032,7]
[422599106,1779137444000,-34595.14827307,0.00031926,7]
[422599104,1779137444000,-5000.0,0.00031901,2]
[422599099,1779137444000,-160.07,0.00031672,2]
[422599112,1779137444000,-4684.34643903,0.00032009,2]
[422599105,1779137444000,-5000.0,0.00031901,2]
[422599109,1779137444000,-189.97120828,0.00032,120]
[422599111,1779137444000,-700.0,0.00032,2]
[422599110,1779137444000,-500.0,0.00032,62]
[422599095,1779137444000,-151.0,0.00031585,7]
[422599118,1779137444000,-672.60053897,0.00032044,7]
[422599114,1779137444000,-22434.67635293,0.00032031,2]
[422599115,1779137444000,-165.0169709,0.00032044,7]
[422599119,1779137444000,-1101.60740761,0.00032044,7]
[422599117,1779137444000,-222.19526241,0.00032044,7]
[422599116,1779137444000,-578.03460822,0.00032044,7]
[422599113,1779137444000,-1586.0,0.00032025,3]
[422599121,1779137444000,-421.3647822,0.00032044,7]
[422599102,1779137444000,-1203.37,0.00031834,7]
[422599093,1779137444000,-1000.0,0.000315,7]
[422599097,1779137444000,-200.0,0.000316,2]
[422599092,1779137444000,-272.11780025,0.00031499,2]
[422599122,1779137444000,-406.03076882,0.00032044,7]
[422599068,1779137444000,-155.0,0.00031145,30]
[422599066,1779137444000,-159.0,0.00031131,30]
[422599067,1779137444000,-289.0,0.00031131,30]
[422599072,1779137444000,-157.0,0.00031145,30]
[422599071,1779137444000,-398.0,0.00031145,30]
[422599069,1779137444000,-158.0,0.00031145,30]
[422599070,1779137444000,-161.0,0.00031145,30]
[422599073,1779137444000,-7027.68,0.00031146,7]
[422599074,1779137444000,-502.0,0.00031152,6]
[422599076,1779137444000,-331.703333,0.000312,7]
[422599086,1779137444000,-171.57451771,0.0003147,7]
[422599080,1779137444000,-826.20555571,0.0003144,7]
[422599077,1779137444000,-331.76,0.000313,7]
[422599075,1779137444000,-331.703333,0.000312,7]
[422599078,1779137444000,-385.35640548,0.0003144,7]
[422599081,1779137444000,-414.74990944,0.0003144,7]
[422599083,1779137444000,-248.2368663,0.0003144,2]
[422599084,1779137444000,-357.15712556,0.0003144,2]
[422599082,1779137444000,-325.0322332,0.0003144,7]
[422599085,1779137444000,-500.0,0.00031447,7]
[422599087,1779137444000,-468.66428907,0.0003147,2]
[422599089,1779137444000,-281.58633286,0.0003147,2]
[422599088,1779137444000,-209.93422819,0.0003147,7]
[422599090,1779137444000,-273.63279438,0.0003147,7]
[422599091,1779137444000,-1832.11347403,0.00031494,2]
[422599079,1779137444000,-504.45040423,0.0003144,7]
[422599123,1779137444000,-487.5483498,0.00032044,7]
[422599125,1779137444000,-535.73568834,0.00032044,2]
[422599155,1779137444000,-927.0,0.0003232,2]
[422599157,1779137444000,-395.16038289,0.00032324,2]
[422599156,1779137444000,-1879.181,0.0003232,2]
[422599161,1779137444000,-150.0,0.00032542,2]
[422599164,1779137444000,-150.0,0.00032562,2]
[422599158,1779137444000,-2313.0,0.00032364,11]
[422599154,1779137444000,-3938.0,0.0003224,2]
[422599162,1779137444000,-276.0,0.00032542,2]
[422599159,1779137444000,-502.0,0.0003249,7]
[422599160,1779137444000,-294.0,0.00032542,2]
[422599163,1779137444000,-292.5,0.00032548,2]
[422599166,1779137444000,-1377.00925951,0.00032648,7]
[422599171,1779137444000,-379.42,0.00032877,2]
[422599177,1779137444000,-500.0,0.00032877,2]
[422599173,1779137444000,-1000.0,0.00032877,120]
[422599172,1779137444000,-350.13,0.00032877,2]
[422599174,1779137444000,-500.0,0.00032877,2]
[422599165,1779137444000,-840.75067371,0.00032648,7]
[422599170,1779137444000,-1002.41,0.00032877,2]
[422599175,1779137444000,-500.0,0.00032877,2]
[422599168,1779137444000,-1000.0,0.00032876,30]
[422599167,1779137444000,-781.10714845,0.00032679,2]
[422599169,1779137444000,-676.05463521,0.00032876,30]
[422599178,1779137444000,-500.0,0.00032877,2]
[422599120,1779137444000,-622.12486416,0.00032044,7]
[422599153,1779137444000,-250.0,0.00032235,7]
[422599151,1779137444000,-157.0,0.00032145,30]
[422599176,1779137444000,-500.0,0.00032877,2]
[422599148,1779137444000,-158.0,0.00032145,30]
[422599124,1779137444000,-496.47373259,0.00032044,2]
[422599150,1779137444000,-398.0,0.00032145,30]
[422599128,1779137444000,-200.0,0.00032055,2]
[422599129,1779137444000,-343.14903541,0.00032074,7]
[422599127,1779137444000,-167.97334161,0.00032052,7]
[422599126,1779137444000,-2313.0,0.00032044,3]
[422599130,1779137444000,-388.6539379,0.00032074,7]
[422599135,1779137444000,-168.50965327,0.00032074,2]
[422599138,1779137444000,-547.26558876,0.00032074,7]
[422599132,1779137444000,-219.57578969,0.00032074,7]
[422599134,1779137444000,-407.91775931,0.00032074,7]
[422599137,1779137444000,-563.17266573,0.00032074,2]
[422599139,1779137444000,-152.0,0.00032131,30]
[422599136,1779137444000,-164.69197537,0.00032074,2]
[422599145,1779137444000,-159.0,0.00032131,30]
[422599146,1779137444000,-289.0,0.00032131,30]
[422599140,1779137444000,-168.36467967,0.00032131,30]
[422599149,1779137444000,-161.0,0.00032145,30]
[422599147,1779137444000,-155.0,0.00032145,30]
[422599152,1779137444000,-434.2,0.0003221,5]
[422599144,1779137444000,-157.0,0.00032131,30]
[422599143,1779137444000,-372.0,0.00032131,30]
[422599141,1779137444000,-153.0,0.00032131,30]
[422599133,1779137444000,-158.25389996,0.00032074,7]
[422599131,1779137444000,-624.88571876,0.00032074,2]
[422599142,1779137444000,-203.0,0.00032131,30]
[422599215,1779137445000,-1203.37,0.00033526,14]
[422599220,1779137445000,-240.61,0.000336,30]